Cogmind - Beta 15 @@@ ROGUE MODE // 2025.07.15 @ 20:43:06 Player: Waste Result: Destroyed by 8R-AWN with 8R-AWN's Boregun Performance ------------- Evolutions (1) 500 Regions Visited (5) 1000 Robots Destroyed (101) 505 Value Destroyed (2435) 2435 Prototype IDs (26) 520 Alien Tech Used (0) 0 Bonus (508) 508 TOTAL SCORE: 5468 Bonus ------- High Alert Combat Kills 176 Follower Combat Kills 32 Aligned with FarCom 300 Cogmind --------- Core Integrity 0/400 Matter 186/500 Energy 100/100 System Corruption 3% Temperature Cool (0) Movement Core (750) Ox14 Location -9/Exiles Parts ------- > --- POWER (1) -------- (None) > --- PROPULSION (2) --- (None) > --- UTILITY (3) ------ High-capacity Storage Unit High-capacity Matter Pod > --- WEAPON (3) ------- (None) > --- INVENTORY (20) --- Improved Signal Interpreter PSU Rigger Peak State ------------ > --- POWER ------------ Heavy Ion Engine > --- PROPULSION ------- Carbon-fiber Leg Carbon-fiber Leg > --- UTILITY ---------- High-capacity Storage Unit High-capacity Matter Pod Reactive Plating > --- WEAPON ----------- Latent Energy Streamer Autogun Autogun > --- INVENTORY -------- Heavy Ion Engine Carbon-fiber Leg Carbon-fiber Leg Large Matter Pod Improved Signal Interpreter Trap Extractor PSU Rigger XL Autogun Array Missile Launcher [Rating: 34] Favorites ----------- Power Heavy Ion Engine Engine Heavy Ion Engine Power Core Light Nuclear Core Propulsion Carbon-fiber Leg Treads Light Treads Leg Carbon-fiber Leg Utility Light Armor Plating Device Trap Extractor Storage High-capacity Storage Unit Protection Light Armor Plating Weapon Autogun Energy Gun Medium Laser Energy Cannon Latent Energy Streamer Ballistic Gun Autogun Launcher Missile Launcher Special Melee Weapon Datajack Build | -11 -10 -10 -9 -9 -9 ------- Run | Yrd Mat Min Mat Min Exi Slots Evolved 2 | . . . 2 . . Power . | . . . . . . Propulsion . | . . . . . . Utility 1 | . . . 1 . . Weapon 1 | . . . 1 . . Parts Attached 42 | . 6 4 21 1 10 Power 6 | . 1 1 2 . 2 Engine 5 | . 1 1 1 . 2 Core 1 | . . . 1 . . Reactor . | . . . . . . Propulsion 9 | . . 2 2 1 4 Treads 2 | . . 2 . . . Leg 7 | . . . 2 1 4 Wheel . | . . . . . . Hover . | . . . . . . Flight . | . . . . . . Utility 15 | . 3 . 10 . 2 Device 1 | . . . 1 . . Storage 4 | . 2 . 1 . 1 Processor . | . . . . . . Hackware . | . . . . . . Protection 10 | . 1 . 8 . 1 Artifact . | . . . . . . Weapon 12 | . 2 1 7 . 2 Energy Gun . | . . . . . . Energy Cannon 1 | . . . . . 1 Ballistic Gun 8 | . 2 1 4 . 1 Ballistic Cannon . | . . . . . . Launcher 2 | . . . 2 . . Special Weapon . | . . . . . . Impact Weapon . | . . . . . . Slashing Weapon . | . . . . . . Piercing Weapon . | . . . . . . Special Melee Weapon 1 | . . . 1 . . Unidentified Prototypes 1 | . . . 1 . . Parts Lost 19 | . . . 3 2 14 Power 2 | . . . . . 2 Propulsion 5 | . . . . 1 4 Utility 4 | . . . 1 1 2 Weapon 8 | . . . 2 . 6 Highest Loss Streak 14 | . . . 1 1 14 To Critical Strikes 5 | . . . . . 5 Average Backups 13 | . 7 11 15 13 15 Power 2 | . 1 1 1 2 3 Propulsion 3 | . 2 3 5 4 2 Utility 3 | . . 3 3 4 4 Weapon 3 | . 4 4 3 3 4 Tool/Special . | . . . . . . Unused Backups 29 | . 10 . 10 . 9 Power 6 | . 1 . 2 . 3 Propulsion 9 | . 4 . 5 . . Utility 7 | . 1 . 1 . 5 Weapon 7 | . 4 . 2 . 1 Tool/Special . | . . . . . . Average Slot Usage (%) 91 | . 97 100 99 95 64 Engine 11 | . 14 14 10 11 10 Treads 3 | . . 26 . . . Leg 19 | . 28 1 21 21 21 Device 3 | . . . 6 5 . Storage 12 | . 16 14 11 11 12 Protection 12 | . 8 14 15 12 10 Ballistic Gun 25 | . 26 28 32 32 8 Peak Build Rating 34 | . 10 13 27 25 34 Average Rating 20 | . 9 11 24 24 20 On Entrance 13 | 6 6 10 13 25 23 Naked Turns . | . . . . . . Heaviest Build 68 | 12 34 37 63 65 68 Greatest Support 40 | 20 20 40 40 30 30 Greatest Overweight (x) 20 | . 1 1 2 20 2 Average Overweight (x) . | . . . 1 2 1 Largest Inventory Capacity 20 | . 15 15 20 20 20 Average Capacity 16 | . 9 15 16 20 20 Most Carried 20 | . 8 14 16 14 20 Average Carried 14 | . 7 12 15 13 17 Final Capacity 20 | 8 15 15 20 20 20 Final Carried 14 | 6 8 14 14 13 2 Class Distribution -------------------- 51% | Tank 29% | Mutant 14% | Trapper-Mutant 4% | Trapper-Tank Dominant Class ---------------- Mutant | -10/Materials Mutant | -10/Mines Tank | -9/Materials Tank | -9/Mines Trapper-Mutant | -9/Exiles Resources | -11 -10 -10 -9 -9 -9 ----------- Run | Yrd Mat Min Mat Min Exi Matter Collected 2651 | 200 472 271 1086 168 454 Remotely . | . . . . . . Salvage Created 3168 | . 496 531 2022 119 . Parts 208 | . 26 24 140 18 . Haulers Intercepted 6 | . 1 . 5 . . Recyclers Shooed . | . . . . . . Parts Field Recycled . | . . . . . . Retrieved Matter . | . . . . . . Parts Self-Destructed . | . . . . . . Prevented . | . . . . . . Kills | -11 -10 -10 -9 -9 -9 ------- Run | Yrd Mat Min Mat Min Exi Combat Hostiles Destroyed 75 | . 10 10 44 10 1 Guns 58 | . 10 10 34 4 . AOE 17 | . . . 10 6 1 Classes Destroyed 16 | . 3 2 9 1 1 Worker 6 | . . . 6 . . Builder 2 | . . . 2 . . Tunneler 3 | . . . 2 1 . Hauler 6 | . 1 . 5 . . Recycler 5 | . . 2 3 . . Mechanic 1 | . . . 1 . . Operator 2 | . . . 2 . . Watcher 2 | . 1 . 1 . . Swarmer 23 | . . 3 13 7 . Grunt 36 | . 10 7 17 2 . Brawler 1 | . . . 1 . . Duelist 2 | . . . 2 . . Protector 1 | . . . 1 . . Sentry 10 | . . . 10 . . Demolisher 1 | . . . . 1 . Assembled 1 | . . . . . 1 Best Kill Streak 17 | . 2 4 17 5 1 Combat Bots Only 10 | . 2 4 10 4 1 Max Kills in Single Turn 4 | . 1 2 4 2 1 Gunslinging 1 | . . 1 1 . . Exploded 2 | . . . 2 2 1 Melee . | . . . . . . Uniques/NPCs Destroyed . | . . . . . . Combat | -11 -10 -10 -9 -9 -9 -------- Run | Yrd Mat Min Mat Min Exi Hostile Shots Fired 348 | . 28 46 127 25 122 Missed 89 | . 5 17 36 5 26 Hits 259 | . 23 29 91 20 96 Melee 2 | . . . 2 . . Projectile 257 | . 23 29 89 20 96 AOE 2 | . . . . 2 . Critical Strikes 44 | . 1 . 3 . 40 Damage Taken 3822 | . 276 359 1130 271 1786 Core 531 | . 85 25 117 6 298 Absorbed by Shields . | . . . . . . Ignored by Resistances 177 | . . . . . 177 Regen/Repaired (Parts) 67 | . 67 . . . . Core Remaining (%) 78 | 100 . 56 . . . Volleys Fired 219 | . 34 27 90 13 55 Largest 3 | . 2 2 3 3 3 Hottest 82 | . 46 46 79 82 79 Shots Fired 500 | . 68 54 251 32 95 Gun 477 | . 68 54 243 26 86 Cannon . | . . . . . . Launcher 23 | . . . 8 6 9 Special . | . . . . . . Kinetic 477 | . 68 54 243 26 86 Thermal . | . . . . . . Explosive 23 | . . . 8 6 9 Electromagnetic . | . . . . . . Robot Hit Streak 20 | . 20 14 13 6 12 Robot Miss Streak 4 | . 4 2 3 3 3 Penetration Max . | . . . . . . Secondary Targets 11 | . . 3 6 2 . Max Gunslinging Chain 1 | . . 1 1 1 . Shots Hit Robots 334 | . 47 37 164 19 67 Core Hits 157 | . 20 18 92 11 16 Critical Kills 2 | . 1 . 1 . . Critical Parts Destroyed 3 | . . 1 2 . . Critical Strikes 5 | . 1 1 3 . . Destroy 5 | . 1 1 3 . . Melee Attacks 1 | . . . 1 . . Impact . | . . . . . . Slashing . | . . . . . . Piercing . | . . . . . . Sneak Attacks 1 | . . . 1 . . Combat Hostiles . | . . . . . . Follow-up Attacks . | . . . . . . Damage Inflicted 7858 | . 710 625 4639 782 1102 Guns 5413 | . 679 604 2923 280 927 Cannons . | . . . . . . Explosions 2293 | . . . 1663 487 143 Melee . | . . . . . . Ramming 152 | . 31 21 53 15 32 Kinetic 5413 | . 679 604 2923 280 927 Thermal . | . . . . . . Explosive 2209 | . . . 1579 487 143 Electromagnetic 84 | . . . 84 . . Impact . | . . . . . . Slashing . | . . . . . . Piercing . | . . . . . . Highest Corruption 3 | . . . 3 3 3 Average Corruption 2 | . . . 2 3 3 Corruption Purged . | . . . . . . Corruption Blocked . | . . . . . . Effects 58 | . . . 23 13 22 Message Errors 12 | . . . 6 2 4 Matter Fused 18 | . . . 8 3 7 Heat Flow Errors 4 | . . . 2 1 1 Energy Discharges 6 | . . . 3 1 2 Data Loss (minor) 11 | . . . 4 5 2 Data Loss (major) 4 | . . . . . 4 Misfires 2 | . . . . 1 1 Alerts 1 | . . . . . 1 Overload Shots . | . . . . . . Overflow Damage 69 | . . . 35 . 34 Projectiles . | . . . . . . Explosions 69 | . . . 35 . 34 Melee . | . . . . . . Knockbacks . | . . . . . . Impact . | . . . . . . Kinetic . | . . . . . . Secondary . | . . . . . . Self-Inflicted Damage 412 | . . . 82 20 310 Shots 11 | . . . 4 1 6 Rammed 4 | . . 3 . . 1 Targets Rammed 41 | . 6 3 10 3 19 Kicked 37 | . 6 . 10 3 18 Crushed . | . . . . . . Highest Temperature 256 | . 66 127 255 219 256 Average Temperature 51 | . 23 48 49 65 76 Received Heat Transfer 762 | . 171 192 369 30 . Effects 1 | . . . . . 1 Energy Bleed 1 | . . . . . 1 Siege Activations . | . . . . . . Martial Activations . | . . . . . . Shielding Activations . | . . . . . . Robots Disrupted 1 | . . . 1 . . Combat Hostiles 1 | . . . 1 . . Robots Corrupted . | . . . . . . Combat Hostiles . | . . . . . . Parts Fried . | . . . . . . Impact Corruptions . | . . . . . . Robots Melted . | . . . . . . Combat Hostiles . | . . . . . . Parts Melted 2 | . . 2 . . . Heat Transferred . | . . . . . . Parts Sabotaged . | . . . . . . Parts Stolen . | . . . . . . Parts Stripped . | . . . . . . Power Chain Reactions . | . . . . . . Alert | -11 -10 -10 -9 -9 -9 ------- Run | Yrd Mat Min Mat Min Exi Maximum Alert Level 3 | . . . 3 1 . Low Security (%) 64 | . 100 100 59 . . Level 1 25 | . . . 22 100 . Level 2 6 | . . . 11 . . Level 3 3 | . . . 6 . . Level 4 . | . . . . . . Level 5 . | . . . . . . High Security . | . . . . . . Max Security . | . . . . . . Peak Influence 829 | . 147 171 829 388 . Initial 319 | . . 22 26 319 . Average 188 | . 47 45 251 291 . Influence Increases 2347 | . 282 308 1479 278 . Destroy 0b10 Robot/C 1500 | . 200 220 880 200 . Destroy 0b10 Robot/NC 145 | . 10 10 120 5 . Destroy Leader 346 | . 44 50 222 30 . Allied During Kill 15 | . . 13 2 . . Successful Hack 46 | . 24 . 22 . . Disable Machine 75 | . . 15 60 . . Destroy Structure 115 | . 4 . 68 43 . Lose Combat Pursuer 105 | . . . 105 . . Influence Decreases 2347 | . 225 298 727 882 215 Entered New Map 791 | . . 35 41 500 215 Time Decay 1466 | . 225 243 636 362 . Lost Part 50 | . . . 30 20 . Lost Ally 40 | . . 20 20 . . Squads Dispatched 8 | . 1 . 6 1 . Investigation 2 | . . . 2 . . Extermination . | . . . . . . Reinforcement 4 | . 1 . 2 1 . Assault 2 | . . . 2 . . Garrison . | . . . . . . Intercept . | . . . . . . Searches Triggered . | . . . . . . Construction Impeded 1 | . . . . 1 . Haulers Reinforced . | . . . . . . Active Scanning Responses . | . . . . . . Cargo Convoy Interrupts . | . . . . . . Stealth | -11 -10 -10 -9 -9 -9 --------- Run | Yrd Mat Min Mat Min Exi Distress Signals 7 | . 1 . 6 . . Communications Jammed . | . . . . . . Distress Signals . | . . . . . . Times Spotted 109 | . 16 11 67 10 5 Peak Tracking Total 9 | . 3 5 8 3 9 Tactical Retreats 6 | . . . 6 . . Traps | -11 -10 -10 -9 -9 -9 ------- Run | Yrd Mat Min Mat Min Exi Traps Triggered 5 | . 1 . 4 . . Indirectly . | . . . . . . Trap Hack Attempts 45 | . . . 45 . . Triggered 1 | . . . 1 . . Disarmed 1 | . . . 1 . . Reprogrammed 4 | . . . 4 . . Reused 2 | . . . . . 2 Traps Extracted 4 | . . . 4 . . Installed 4 | . . . . . 4 Triggered . | . . . . . . Most Traps Carried 4 | . . . 4 4 4 Machines | -11 -10 -10 -9 -9 -9 ---------- Run | Yrd Mat Min Mat Min Exi Machines Disabled 12 | . . 2 4 . 6 Max in Single Turn 2 | . . 1 2 . 2 Machines Repaired . | . . . . . . Machines Dismantled . | . . . . . . Machines Sabotaged . | . . . . . . Overloaded Fab Kills . | . . . . . . Hacking | -11 -10 -10 -9 -9 -9 --------- Run | Yrd Mat Min Mat Min Exi Machines Accessed 10 | . 3 . 5 . 2 Terminals 7 | . 2 . 5 . . Fabricators . | . . . . . . Repair Stations 1 | . 1 . . . . Recycling Units . | . . . . . . Scanalyzers . | . . . . . . Garrison Access . | . . . . . . Total Hacks 29 | . 9 . 12 . 8 Successful 19 | . 3 . 8 . 8 Failed 9 | . 5 . 4 . . Catastrophic 1 | . 1 . . . . Database Lockouts 1 | . 1 . . . . Manual 17 | . 7 . 9 . 1 Terminals 19 | . 7 . 12 . . Fabricators . | . . . . . . Repair Stations 2 | . 2 . . . . Recycling Units . | . . . . . . Scanalyzers . | . . . . . . Garrison Access . | . . . . . . Terminal Hacks 16 | . 1 . 7 . 8 Record 7 | . . . . . 7 Robot Analysis 3 | . 1 . 2 . . Prototype ID Bank 1 | . . . 1 . . Branch Access Points 1 | . . . 1 . . Transport Status 1 | . . . 1 . . Hauler Manifests 2 | . . . 2 . . Proto ID Catalog 1 | . . . . . 1 Fabricator Hacks . | . . . . . . Repair Station Hacks 2 | . 2 . . . . Scan Component 1 | . 1 . . . . Repair 1 | . 1 . . . . Recycling Unit Hacks . | . . . . . . Scanalyzer . | . . . . . . Garrison Access Hacks . | . . . . . . Unauthorized Hacks 1 | . . . 1 . . Terminals 1 | . . . 1 . . Botnet 1 | . . . 1 . . Fabricators . | . . . . . . Repair Stations . | . . . . . . Recycling Units . | . . . . . . Scanalyzers . | . . . . . . Garrison Access . | . . . . . . Data Cores Recovered 1 | . . . 1 . . Used 1 | . . . 1 . . Hacking Detections 6 | . 2 . 4 . . Full Trace Events . | . . . . . . Feedback Events . | . . . . . . Feedback Blocked . | . . . . . . Robot Schematics Acquired . | . . . . . . Robots Built . | . . . . . . Authchips . | . . . . . . Time . | . . . . . . Total Robot Build Rating . | . . . . . . Part Schematics Acquired . | . . . . . . Parts Built . | . . . . . . Authchips . | . . . . . . Time . | . . . . . . Total Part Build Rating . | . . . . . . Parts Repaired 1 | . 1 . . . . Time 13 | . 13 . . . . Parts Recycled . | . . . . . . Recycled Matter . | . . . . . . Retrieved Matter . | . . . . . . Retrieved Components . | . . . . . . Parts Scanalyzed . | . . . . . . Part Schematics Acquired . | . . . . . . Parts Damaged . | . . . . . . Bothacking | -11 -10 -10 -9 -9 -9 ------------ Run | Yrd Mat Min Mat Min Exi Used RIF Installer . | . . . . . . Robots Hacked . | . . . . . . Non-combat . | . . . . . . Combat . | . . . . . . Robot Hacks Applied . | . . . . . . Relay Couplers Released . | . . . . . . Fabnet Peak Effective % . | . . . . . . Robots Rewired . | . . . . . . Allies Hacked . | . . . . . . Hacks Repelled . | . . . . . . Allies | -11 -10 -10 -9 -9 -9 -------- Run | Yrd Mat Min Mat Min Exi Total Allies 2 | . . 2 . . . Largest Group 2 | . . 2 1 . . Highest-Rated Group 46 | . . 46 31 . . Highest-Rated Ally 31 | . . 31 31 . . Total Orders . | . . . . . . Ally Attacks 25 | . . 16 9 . . Total Damage 273 | . . 188 85 . . Kills 3 | . . 1 2 . . Allies Corrupted . | . . . . . . Allies Melted . | . . . . . . Intel | -11 -10 -10 -9 -9 -9 ------- Run | Yrd Mat Min Mat Min Exi Active Infowar (turns) . | . . . . . . Robot Analysis Total 3 | . 1 . 2 . . Derelict Logs Recovered 2 | . . 2 . . . Drone Launches . | . . . . . . Drone Recoveries . | . . . . . . Exploration | -11 -10 -10 -9 -9 -9 ------------- Run | Yrd Mat Min Mat Min Exi Turns Passed 7571 | . 853 1108 3065 820 1725 Spaces Moved 3408 | 1 536 630 1267 250 724 Core 9 | . . . . 9 . Treads 603 | . . 599 4 . . Legs 2796 | 1 536 31 1263 241 724 Wheels . | . . . . . . Hover . | . . . . . . Flight . | . . . . . . Fastest Speed 120 | 120 120 160 190 260 190 Average Speed 191 | 120 129 161 207 288 203 Slowest Speed 1050 | 120 190 240 260 1050 260 Overloaded Moves . | . . . . . . Propulsion Burnouts . | . . . . . . Robots Hopped . | . . . . . . Potential Cave-ins . | . . . . . . Cave-ins Triggered . | . . . . . . Exploration Rate (%) 67 | 2 77 99 95 42 89 Regions Visited 5 Branch Regions 3 Pre-discovered Areas 2 | . . 2 . . . Known Exits Taken 1 | . . . 1 . . Unknown Exits Taken 4 | 1 1 1 . 1 . Scrap Searched 1 | . . 1 . . . Spaces Dug 26 | . . . 11 15 . Terrain Destroyed 193 | . . . 64 77 52 Melee . | . . . . . . Projectile 11 | . . . 8 2 1 AOE 182 | . . . 56 75 51 Terrain Rammed . | . . . . . . Walls Destroyed . | . . . . . . Machines Disabled . | . . . . . . Actions | -11 -10 -10 -9 -9 -9 --------- Run | Yrd Mat Min Mat Min Exi Total 4017 | . 639 672 1519 319 868 Wait 155 | . 43 4 46 48 14 Move 3403 | . 535 629 1266 249 724 Hop . | . . . . . . Pick Up 39 | . 6 5 15 . 13 Fast Attach 7 | . 3 . 1 . 3 Attach 20 | . . . 5 1 14 Detach . | . . . . . . Swap 36 | . 5 4 19 5 3 Drop 47 | . 7 . 21 . 19 Fire 219 | . 34 27 90 13 55 Melee 1 | . . . 1 . . Ram 1 | . . . . . 1 Kick 37 | . 6 . 10 3 18 Crush 3 | . . 3 . . . Escape Stasis . | . . . . . . Rewire . | . . . . . . Trap 49 | . . . 45 . 4 Miscellaneous . | . . . . . . Route ------- -11/Scrapyard -10/Materials (discovered 4 exits: *Mat x2 / [*Min] / [*Sub]) -10/Mines (discovered 3 exits: *Mat x2 / [*Sub]) -9/Materials (discovered 4 exits: [*Mat x3] / *Min) -9/Mines -9/Exiles (discovered 1 exit: [*Min]) History --------- Turn | Location | Event 1 | -11/Scrapyard | Discovered new exit (range 0) 1 | -11/Scrapyard | Entered Materials 212 | -10/Materials | Central database locked down 252 | -10/Materials | Discovered new exit (range 15) 321 | -10/Materials | Build established: Mutant 353 | -10/Materials | Discovered new exit (range 10) 427 | -10/Materials | Discovered new exit (range 10) 630 | -10/Materials | Repaired Lgt. Armor Plating 678 | -10/Materials | Discovered new exit (range 9) 854 | -10/Materials | Entered Mines 873 | -10/Mines | Discovered new exit (range 10) 904 | -10/Mines | Joined a pair of Derelicts in attacking an 0b10 outpost 1160 | -10/Mines | Learned Materials stockpile data 1581 | -10/Mines | Learned location of Mines (-8) 1588 | -10/Mines | Discovered new exit (range 7) 1727 | -10/Mines | Discovered new exit (range 7) 1793 | -10/Mines | A weapon hastily lodged in a ceiling crevice suddenly fell to the ground 1855 | -10/Mines | Learned location of Storage (-7) 1962 | -10/Mines | Entered Materials 1962 | -9/Materials | Accompanied by 1 ally 1962 | -9/Materials | Evolved 2 slots: Utility x1, Weapon x1 1967 | -9/Materials | Led the pair of lost Derelicts to an unsafe place 2255 | -9/Materials | Build established: Tank 2294 | -9/Materials | Identified exit to Mines 2565 | -9/Materials | Discovered new exit (range 16) 3733 | -9/Materials | Discovered new exit (range 16) 4317 | -9/Materials | Discovered new exit (range 16) 4762 | -9/Materials | First assault squad dispatched 4852 | -9/Materials | Destroyed 10 combat bots 5027 | -9/Materials | Entered Mines 5117 | -9/Mines | Found a hidden stash of uninstalled traps 5400 | -9/Mines | Assembled infested the area 5834 | -9/Mines | Deemed a non-threat by the Exiles lab entrance 5836 | -9/Mines | Discovered new exit (range 5) 5847 | -9/Mines | Entered Exiles 5904 | -9/Exiles | Met 8R-AWN 5935 | -9/Exiles | Met EX-HEX 5986 | -9/Exiles | Met EX-BIN 6127 | -9/Exiles | Aligned with FarCom system 6129 | -9/Exiles | Given EX-Vault access code 6174 | -9/Exiles | Opened EX-Vault 6192 | -9/Exiles | Build established: Trapper-Mutant 6222 | -9/Exiles | Warned to stay clear of 0b10 Research branches 6434 | -9/Exiles | Found PSU Rigger 6442 | -9/Exiles | Found Latent Energy Streamer 6456 | -9/Exiles | Found XL Autogun Array 6589 | -9/Exiles | Met EX-DEC 6965 | -9/Exiles | Visited The Gauntlet 7275 | -9/Exiles | Attacked by the Exiles 7335 | -9/Exiles | Discovered new exit (range 15) 7505 | -9/Exiles | Core integrity fell below 50% 7544 | -9/Exiles | Core integrity fell below 20% 7572 | -9/Exiles | Destroyed by 8R-AWN with 8R-AWN's Boregun Last Messages --------------- 07555_ HV Slug penetrates Earth. 07557_ Kicked 8R-AWN. 07560_ Penetrated by HV Slug. 07560_ HV Slug penetrates Earth. 07560_ Penetrated by HV Slug. 07560_ HV Slug penetrates Earth. 07562_ Kicked 8R-AWN. 07564_ Penetrated by HV Slug. 07564_ HV Slug penetrates Earth. 07564_ Penetrated by HV Slug. 07564_ HV Slug penetrates Earth. 07564_ Kicked 8R-AWN. 07568_ Penetrated by HV Slug. 07568_ Critical hit (Destroy). 07568_ Carbon-fiber Leg destroyed. 07568_ HV Slug penetrates Earth. 07568_ Penetrated by HV Slug. 07568_ HV Slug penetrates Earth. 07570_ Slammed into 8R-AWN. 07572_ Penetrated by HV Slug. Map ----- +----------------------------------------------------+ | ????????????????????????????????????????????????? | | ????????????????????????????????????????????????? | | ????????????????????????????????????????????????? | | ????????????????????????????????????????????????? | | ????????????????????????????????????????????????? | | ????????????????????????????????????????????????? | | ????????????????????????????????????????????????? | | ????????????????????????????????????????????????? | | ????????????????????????????????????????????????? | | ???????????????????????? ???????????????????????? | | ?????????????????? ??? ???????????????????????? | | ???????????????? < ??? ???????????????????????? | | ???????????????# #?? ???????????????????????? | | ???????????????# ?? #??????????????????????? | | ???????????????? ?? #??????????????????????? | | ????????????????# ?? #??????????????????????? | | ????????????????# ## ##?????????????????????? | | ?????????????????# #?????????#######?????? | | ?????????????????# # ####??????# "#?????? | | ?????????????????# #" ##?????# "#?????? | | ??????????????????# #?????# "#?????? | | ??????????????????## ##???## ""#?????? | | ??????????????????# #####" ""#?????? | | ??????????????###### ##" ""#?????? | | ????????# #!g """ ###?????? | | ???????????????##### # [@# ##?????? | | ???????????????????# # ##????? | | ???????????????????# # # #????? | | ???????????????????# # ## #????? | | ??????????????????# ### !!"""" ##???? | | ?????????????????# ??#! ##### | | ????????????????# #???#! ! """ | | ???????????????# #????#! ! % | | ??????????????# #?????# !" """" #### " | | ?????????????? #??????##;#########???##"" | | ????????????? #????????? #??????????????#"" | | ???????????? ??????????? #????????????????#"# | | ???????????????????????? #??????????????????## | | ???????????????????????? ????????????????????## | | ???????????????????????? ?????????????????????##" | | ???????????????????????? ??????????????????????#" | | ??????????????????????????????????????????????##" | | ??????????????????????????????????????????????#"" | | ??????????????????????????????????????????????#"" | | ?????????????????????????????????????????????#""" | | ?????????????????????????????????????????????#""" | | ?????????????????????????????????????????????#"" | | ?????????????????????????????????????????????#""" | | ?????????????????????????????????????????????#"" | | ?????????????????????????????????????????????##"" | +----------------------------------------------------+ Best States ------------- Heat Dissipation 28 Energy Generation 14 Energy Capacity 280 Matter Stores 307 Matter Capacity 500 Sight Range 16 Terrain Scan Density 10 Armor Coverage 300 Resistance: KI 20 Evasion (%) 55 Recoil Reduction 2 Trap Extractor Capacity 4 Item Schematics ----------------- None Robot Schematics ------------------ None Fabricated ------------ Nothing Repaired ---------- Lgt. Armor Plating | 25% | -10/Materials Alien Tech Used ----------------- None Achievements -------------- None Challenges ------------ None Game ------ Seed GlidesysNodeTether Manual? 0 Play Time 00:26:14 Cumulative 397.3 hours Start 2025.07.15 @ 20:17:54 End 2025.07.15 @ 20:43:06 Sessions 1 Manual Loads 0 Difficulty Rogue Special Mode None Game No. 491 Rogue 491 Adventurer 0 Explorer 0 Win Type - Total 31 Types 15/1/9/1/1/1/0/1/1/1 Lore% 87 Gallery% 80 Achievement% 77 Wizard Run 0 Options --------- Layout 0 ASCII 0 Keyboard 0 Movement Numpad Keybinds 0 Fullscreen 1 Font 18/SmallcapsGlow Map View 76x50 Zoom Use 0% Tactical HUD 1 Map Filters NONE Filters NONE Steam 1 RUN: 03b78e0e-9b95-4048-851b-b94edbd7e63c